[Event "Wuerttemberg Rapid Teams 2024"]
[Site "B?blingen, Germany"]
[Date "2024.04.13"]
[Round "6.23"]
[White "Jerie, Sven"]
[Black "Sulzbacher, Kurt"]
[Result "1-0"]
[ECO "B33"]
[WhiteElo "2018"]
[BlackElo "1976"]
[Annotator "NA RC"]
[PlyCount "73"]
[EventDate "2024.04.13"]
[EventType "team-tourn"]
[SourceTitle "playchess.com"]
[Source "ChessBase"]
[SourceQuality "1"]
[TimeControl "900+5"]

1. e4 {[%emt 0:00:03]} c5 {[%emt 0:00:01]} 2. Nf3 {[%emt 0:00:01]} Nc6 {[%emt 0:00:11]} 3. d4 {[%emt 0:00:02]} cxd4 {[%emt 0:00:01]} 4. Nxd4 {[%emt 0:00:01]} Nf6 {[%emt 0:00:01]} 5. Nc3 {[%emt 0:00:01]} e6 {[%emt 0:00:03]} 6. Ndb5 {[%emt 0:00:07]} d6 {[%emt 0:00:17]} 7. Bf4 {[%emt 0:00:08]} e5 {[%emt 0:00:02]} 8. Bg5 {[%emt 0:00:01]} a6 {[%emt 0:00:10]} 9. Na3 {[%emt 0:00:02]} b5 {[%emt 0:00:17]} 10. Nd5 {[%emt 0:00:03]} Be7 {[%emt 0:00:01]} 11. Bxf6 {[%emt 0:00:02]} Bxf6 {[%emt 0:00:04]} 12. c3 {[%emt 0:00:02]} Ne7 {[%emt 0:00:16]} 13. Nxf6+ {[%emt 0:00:08]} gxf6 {[%emt 0:00:01]} 14. Bd3 {[%emt 0:00:17]} h5 {[%emt 0:00:40]} 15. O-O {[%emt 0:00:46]} Ng6 {[%emt 0:00:19]} 16. Be2 {[%emt 0:00:29]} Nf4 {[%emt 0:00:18]} 17. g3 {[%emt 0:00:06]} Nh3+ {[%emt 0:00:02]} 18. Kg2 {[%emt 0:00:10]} Qd7 {[%emt 0:00:45]} 19. Nc2 {[%emt 0:00:10]} Ng5 {[%emt 0:01:09]} 20. Ne3 {[%emt 0:00:49]} Qh3+ {[%emt 0:04:16]} 21. Kg1 {[%emt 0:00:06]} h4 {[%emt 0:02:27]} 22. Bg4 {[%emt 0:00:06]} Bxg4 {[%emt 0:00:08]} 23. Qxg4 {[%emt 0:00:02]} Qxg4 {[%emt 0:01:12]} 24. Nxg4 {[%emt 0:00:02]} Ke7 {[%emt 0:00:01]} 25. f3 {[%emt 0:00:56]} hxg3 {[%emt 0:00:51]} 26. hxg3 {[%emt 0:00:02]} Rh3 {[%emt 0:00:01]} 27. Kg2 {[%emt 0:00:13]} Rah8 {[%emt 0:00:02]} 28. Rae1 {[%emt 0:00:24]} d5 {[%emt 0:00:57]} 29. exd5 {[%emt 0:00:45]} Kd6 {[%emt 0:00:43]} 30. f4 {[%emt 0:01:21]} exf4 {[%emt 0:00:02]} 31. Rxf4 {[%emt 0:00:07]} Kxd5 {[%emt 0:00:39]} 32. Rxf6 {[%emt 0:00:33]} R3h5 {[%emt 0:00:26]} 33. Re5+ {[%emt 0:02:25]} Kc4 {[%emt 0:00:02]} 34. Ne3+ {[%emt 0:00:09]} Kd3 {[%emt 0:00:02]} 35. Rd6+ {[%emt 0:00:05]} Ke2 {[%emt 0:00:06]} 36. Nf1+ {[%emt 0:00:11]} Ne4 {[%emt 0:00:03]} 37. Rxe4# {[%emt 0:00:08]} 1-0

[Event "Wuerttemberg Rapid Teams 2024"]
[Site "B?blingen, Germany"]
[Date "2024.04.13"]
[Round "6.24"]
[White "Kaufmann, Gunther"]
[Black "Schaffert, Walter"]
[Result "0-1"]
[ECO "B01"]
[WhiteElo "1852"]
[BlackElo "2033"]
[Annotator "NA RC"]
[PlyCount "41"]
[EventDate "2024.04.13"]
[EventType "team-tourn"]
[SourceTitle "playchess.com"]
[Source "ChessBase"]
[SourceQuality "1"]
[TimeControl "900+5"]

1. e4 {[%emt 0:00:02]} d5 {[%emt 0:00:00]} 2. exd5 {[%emt 0:00:02]} Qxd5 {[%emt 0:00:02]} 3. d4 {[%emt 0:00:06]} Nc6 {[%emt 0:00:03]} 4. Be3 {[%emt 0:00:13]} e5 {[%emt 0:00:23]} 5. Nc3 {[%emt 0:00:22]} Bb4 {[%emt 0:00:17]} 6. dxe5 {[%emt 0:01:27]} Qxe5 {[%emt 0:00:19]} 7. Nge2 {[%emt 0:00:16]} Bg4 {[%emt 0:00:18]} 8. Qd3 {[%emt 0:00:42]} Bf5 {[%emt 0:02:20]} 9. Qd2 {[%emt 0:00:39]} Rd8 {[%emt 0:00:08]} 10. Qc1 {[%emt 0:00:35]} Nf6 {[%emt 0:00:26]} 11. a3 {[%emt 0:01:03]} Ba5 {[%emt 0:00:09]} 12. b4 {[%emt 0:00:49]} Bxb4 {[%emt 0:00:47]} 13. axb4 {[%emt 0:00:50]} Nxb4 {[%emt 0:00:02]} 14. f3 {[%emt 0:01:56]} Bxc2 {[%emt 0:01:05]} 15. Ng3 {[%emt 0:00:39]} Qxc3+ {[%emt 0:00:22]} 16. Kf2 {[%emt 0:00:12]} O-O {[%emt 0:01:25]} 17. Be2 {[%emt 0:00:32]} Rfe8 {[%emt 0:01:43]} 18. Ra3 {[%emt 0:00:19]} Qe5 {[%emt 0:01:34]} 19. Rxa7 {[%emt 0:00:51]} Nfd5 {[%emt 0:00:29]} 20. Bd2 {[%emt 0:00:19]} Qd4+ {[%emt 0:00:09]} 21. Ke1 {[%emt 0:01:06]} 0-1

[Event "Wuerttemberg Rapid Teams 2024"]
[Site "B?blingen, Germany"]
[Date "2024.04.13"]
[Round "6.25"]
[White "Gabriel, Robert"]
[Black "Belica, Matej"]
[Result "1-0"]
[ECO "C54"]
[WhiteElo "2161"]
[BlackElo "2173"]
[Annotator "RC"]
[PlyCount "79"]
[EventDate "2024.04.13"]
[EventType "team-tourn"]
[SourceTitle "playchess.com"]
[Source "ChessBase"]
[SourceQuality "1"]
[TimeControl "900+5"]

1. e4 {[%emt 0:00:03]} e5 {[%emt 0:00:00]} 2. Bc4 {[%emt 0:00:01]} Nf6 {[%emt 0:00:04]} 3. d3 {[%emt 0:00:00]} Bc5 {[%emt 0:00:06]} 4. Nf3 {[%emt 0:00:01]} Nc6 {[%emt 0:00:20]} 5. O-O {[%emt 0:00:10]} a6 {[%emt 0:00:11]} 6. c3 {[%emt 0:00:04]} Ba7 {[%emt 0:00:12]} 7. Bb3 {[%emt 0:00:03]} d6 {[%emt 0:00:04]} 8. Nbd2 {[%emt 0:00:07]} Ne7 {[%emt 0:00:39]} 9. Nc4 {[%emt 0:00:02]} Ng6 {[%emt 0:00:04]} 10. Ne3 {[%emt 0:00:18]} Be6 {[%emt 0:00:26]} 11. Ng5 {[%emt 0:00:18]} Bxe3 {[%emt 0:04:44]} 12. Bxe3 {[%emt 0:00:41]} d5 {[%emt 0:00:15]} 13. Nxe6 {[%emt 0:01:39]} fxe6 {[%emt 0:00:01]} 14. exd5 {[%emt 0:01:46]} exd5 {[%emt 0:00:23]} 15. Bc5 {[%emt 0:00:06]} b6 {[%emt 0:00:06]} 16. Ba4+ {[%emt 0:00:15]} Kf7 {[%emt 0:00:14]} 17. Be3 {[%emt 0:00:32]} Qd6 {[%emt 0:00:33]} 18. h3 {[%emt 0:01:02]} Rhd8 {[%emt 0:00:31]} 19. Re1 {[%emt 0:01:14]} Kg8 {[%emt 0:00:10]} 20. Bb3 {[%emt 0:00:02]} Rf8 {[%emt 0:00:25]} 21. Qd2 {[%emt 0:00:40]} Rad8 {[%emt 0:00:08]} 22. Rad1 {[%emt 0:00:02]} c5 {[%emt 0:00:42]} 23. Qe2 {[%emt 0:00:27]} Kh8 {[%emt 0:00:50]} 24. d4 {[%emt 0:00:00]} exd4 {[%emt 0:00:05]} 25. cxd4 {[%emt 0:00:00]} c4 {[%emt 0:00:07]} 26. Bc2 {[%emt 0:00:00]} Nf4 {[%emt 0:01:26]} 27. Bxf4 {[%emt 0:00:30]} Qxf4 28. Qe5 {[%emt 0:00:00]} Qh4 {[%emt 0:00:20]} 29. Qe3 {[%emt 0:03:36]} Rde8 {[%emt 0:01:10]} 30. Qd2 {[%emt 0:00:01]} Ne4 {[%emt 0:00:23]} 31. Bxe4 {[%emt 0:00:03]} Rxe4 {[%emt 0:00:02]} 32. Rxe4 {[%emt 0:00:00]} Qxe4 {[%emt 0:00:02]} 33. Re1 {[%emt 0:00:12]} Qf5 {[%emt 0:00:22]} 34. Re5 {[%emt 0:00:13]} Qb1+ {[%emt 0:00:06]} 35. Kh2 Qxa2 {[%emt 0:00:03]} 36. Qb4 {[%emt 0:00:38]} Kg8 {[%emt 0:00:37]} 37. Qxb6 {[%emt 0:00:16]} c3 {[%emt 0:00:09]} 38. Qe6+ {[%emt 0:00:27]} Kh8 {[%emt 0:00:02]} 39. Qf7 {[%emt 0:00:01]} Rg8 {[%emt 0:00:31]} 40. Re8 {[%emt 0:00:01]} 1-0

[Event "Wuerttemberg Rapid Teams 2024"]
[Site "B?blingen, Germany"]
[Date "2024.04.13"]
[Round "6.27"]
[White "Aksenov, Pavel"]
[Black "Vrabac, Branko"]
[Result "0-1"]
[ECO "B08"]
[WhiteElo "2045"]
[BlackElo "1932"]
[Annotator "NA RC"]
[PlyCount "57"]
[EventDate "2024.04.13"]
[EventType "team-tourn"]
[SourceTitle "playchess.com"]
[Source "ChessBase"]
[SourceQuality "1"]
[TimeControl "900+5"]

1. e4 {[%emt 0:00:02]} g6 {[%emt 0:00:01]} 2. Bc4 {[%emt 0:00:18]} c6 {[%emt 0:00:30]} 3. Nc3 {[%emt 0:00:29]} Bg7 {[%emt 0:01:09]} 4. d4 {[%emt 0:02:15]} d6 {[%emt 0:01:48]} 5. Nf3 {[%emt 0:00:11]} Nf6 {[%emt 0:00:49]} 6. e5 {[%emt 0:02:09]} dxe5 {[%emt 0:00:44]} 7. dxe5 {[%emt 0:00:03]} Qxd1+ {[%emt 0:00:08]} 8. Kxd1 {[%emt 0:00:03]} Ng4 {[%emt 0:00:27]} 9. Ke2 {[%emt 0:01:24]} Nxe5 {[%emt 0:00:09]} 10. Nxe5 {[%emt 0:00:04]} Bxe5 {[%emt 0:00:01]} 11. Bh6 {[%emt 0:00:11]} b5 {[%emt 0:01:34]} 12. Nxb5 {[%emt 0:00:31]} cxb5 {[%emt 0:00:13]} 13. Bd5 {[%emt 0:00:01]} Ba6 {[%emt 0:01:35]} 14. Bxa8 {[%emt 0:01:10]} Bxb2 {[%emt 0:00:14]} 15. Rad1 {[%emt 0:00:43]} f5 {[%emt 0:00:21]} 16. Kf3 {[%emt 0:01:34]} Kf7 {[%emt 0:00:34]} 17. Rhe1 {[%emt 0:00:46]} Re8 {[%emt 0:00:03]} 18. Bg5 {[%emt 0:00:43]} b4 {[%emt 0:02:03]} 19. Bd5+ {[%emt 0:00:48]} e6 {[%emt 0:00:01]} 20. Bb3 {[%emt 0:00:13]} Bc3 {[%emt 0:02:45]} 21. Rxe6 {[%emt 0:00:49]} Rxe6 {[%emt 0:00:11]} 22. Rd6 {[%emt 0:00:05]} Bb7+ {[%emt 0:00:30]} 23. Rd5 {[%emt 0:01:08]} Rd6 {[%emt 0:00:32]} 24. Kg3 {[%emt 0:00:13]} Bxd5 {[%emt 0:00:04]} 25. Bf4 {[%emt 0:00:07]} Bxb3 {[%emt 0:00:20]} 26. Bxd6 {[%emt 0:00:05]} Bxa2 {[%emt 0:00:05]} 27. Bxb8 {[%emt 0:00:07]} a5 {[%emt 0:00:05]} 28. Kf4 {[%emt 0:00:07]} Bb1 {[%emt 0:00:44]} 29. Bc7 {[%emt 0:01:11]} 0-1

[Event "Wuerttemberg Rapid Teams 2024"]
[Site "B?blingen, Germany"]
[Date "2024.04.13"]
[Round "6.28"]
[White "Ameln, Till"]
[Black "Siegle, Florian"]
[Result "0-1"]
[ECO "A47"]
[WhiteElo "1887"]
[BlackElo "1912"]
[Annotator "TA"]
[PlyCount "78"]
[EventDate "2024.04.13"]
[EventType "team-tourn"]
[SourceTitle "playchess.com"]
[Source "ChessBase"]
[SourceQuality "1"]
[TimeControl "900+5"]

{[%evp 13,78,14,14,15,15,6,44,0,25,0,0,-9,0,0,0,0,0,3,3,-26,-37,-31,0,-97,-54,-56,-49,-59,-47,-48,-45,-51,-52,-76,-59,-75,-31,-77,-38,-65,-71,-129,0,-26,0,0,0,0,0,-121,-130,-156,-159,-142,-91,-29979,-29981,-29981,-29982,-29982,-29983,-29983,-29984,-29984,-29985,-29985,-29986]} 1. d4 {[%emt 0:00:01]} Nf6 {[%emt 0:00:05]} 2. Bf4 {[%emt 0:00:02]} e6 {[%emt 0:00:19]} 3. e3 {[%emt 0:00:02]} b6 {[%emt 0:00:36]} 4. Nf3 {[%emt 0:00:15]} Bb7 {[%emt 0:00:02]} 5. Be2 {[%emt 0:00:13]} Be7 {[%emt 0:00:09]} 6. h3 {[%emt 0:00:13]} O-O {[%emt 0:00:03]} 7. O-O {[%emt 0:00:02]} d6 {[%emt 0:00:05]} 8. c4 {[%emt 0:00:12]} Nbd7 {[%emt 0:00:03]} 9. Nc3 {[%emt 0:00:06]} c6 {[%emt 0:00:41]} 10. Bg5 {[%emt 0:01:23] White is slightly better.} h6 {[%emt 0:00:12]} 11. Bxf6 {[%emt 0:00:02]} Nxf6 {[%emt 0:00:04]} 12. a4 {[%emt 0:00:35]} d5 {[%emt 0:00:10]} 13. cxd5 {[%emt 0:00:25]} exd5 {[%emt 0:00:05]} 14. Ne5 {[%emt 0:00:11]} Nd7 {[%emt 0:00:31]} 15. Nxd7 {[%emt 0:00:10]} Qxd7 {[%emt 0:00:03]} 16. Bg4 {[%emt 0:00:11]} f5 {[%emt 0:00:46]} 17. Bh5 {[%emt 0:00:34]} Qd6 {[%emt 0:00:19]} 18. f4 {[%emt 0:00:13]} (18. a5 $11) 18... Ba6 {[%emt 0:01:00]} 19. Be2 {[%emt 0:00:16]} Bxe2 {[%emt 0:00:34]} 20. Qxe2 {[%emt 0:00:01]} a5 {[%emt 0:00:19]} 21. Qf3 {[%emt 0:01:04]} Qe6 {[%emt 0:00:31]} 22. Rac1 {[%emt 0:00:39]} Bb4 {[%emt 0:00:51]} 23. g4 {[%emt 0:00:53]} fxg4 {[%emt 0:00:26]} 24. hxg4 {[%emt 0:00:02]} Rfe8 {[%emt 0:00:10] Black is more active.} 25. Rce1 {[%emt 0:00:23]} (25. Rfe1 $15 {feels stronger.}) 25... Rad8 {[%emt 0:00:20]} 26. f5 {[%emt 0:00:02]} Qf6 {[%emt 0:00:20]} 27. Re2 {[%emt 0:00:48] [#]} (27. Kf2 $142) 27... Qg5 {[%emt 0:00:15]} (27... Bxc3 $1 $17 28. bxc3 Re4) 28. Qf4 {[%emt 0:00:24]} Bxc3 {[%emt 0:01:15]} 29. Qxg5 {[%emt 0:00:19]} hxg5 {[%emt 0:00:01]} 30. bxc3 $11 {[%emt 0:00:02][%mdl 4096] Endgame. KRR-KRR} Re4 {[%emt 0:00:02]} 31. f6 {[%emt 0:01:14]} (31. Kf2 $11 {keeps the balance.}) 31... Rxg4+ $17 {[%emt 0:00:28]} 32. Rg2 {[%emt 0:00:19]} Rxg2+ {[%emt 0:00:08]} 33. Kxg2 {[%emt 0:00:02] [#]} Rf8 {[%emt 0:00:26]} (33... b5 $142 $1 34. fxg7 (34. axb5 cxb5 35. Kg3 a4 $17) 34... Kxg7 (34... bxa4 35. Ra1 $17)) 34. fxg7 $2 {[%emt 0:00:45][%mdl 8192] White does not recover from this.} (34. Rb1 $17) 34... Rxf1 {[%emt 0:00:02] Black mates.} 35. Kxf1 {[%emt 0:00:01] KP-KP} b5 {[%emt 0:00:02]} 36. axb5 {[%emt 0:00:33]} cxb5 {[%emt 0:00:01]} 37. e4 {[%emt 0:00:11]} Kxg7 {[%emt 0:00:09]} 38. exd5 {[%emt 0:00:35]} a4 {[%emt 0:00:02]} 39. d6 {[%emt 0:00:01]} Kf7 {Weighted Error Value: White=0.39/Black=0.17 (very precise) .  Loses game:     	White=1     	---        Mistake:       	White=4     	Black=2      Inaccurate:     	White=5     	Black=6      OK:         	White=7     	Black=4      Best:        	White=1     	Black=3} 0-1

[Event "Wuerttemberg Rapid Teams 2024"]
[Site "B?blingen, Germany"]
[Date "2024.04.13"]
[Round "6.29"]
[White "Li, Yunqi"]
[Black "Schaefer, Daniel"]
[Result "1-0"]
[ECO "E32"]
[WhiteElo "1940"]
[BlackElo "1952"]
[Annotator "TA"]
[PlyCount "69"]
[EventDate "2024.04.13"]
[EventType "team-tourn"]
[SourceTitle "playchess.com"]
[Source "ChessBase"]
[SourceQuality "1"]
[TimeControl "900+5"]

{[%evp 9,69,22,28,16,12,10,38,49,36,36,95,93,96,74,139,152,141,148,146,127,143,137,154,145,159,168,163,149,260,237,246,253,347,323,321,328,332,208,202,213,210,191,201,172,216,183,185,183,444,183,197,-509,-495,-667,-667,-667,-667,-974,-667,-830,-656,-760]} 1. d4 {[%emt 0:00:02]} Nf6 {[%emt 0:00:03]} 2. c4 {[%emt 0:00:01]} e6 {[%emt 0:00:02]} 3. Nc3 {[%emt 0:00:02]} Bb4 {[%emt 0:00:02]} 4. Qc2 {[%emt 0:00:01]} b6 {[%emt 0:00:04]} 5. e4 {[%emt 0:00:04]} c5 {[%emt 0:00:24]} 6. d5 {[%emt 0:00:07]} exd5 {[%emt 0:00:05]} 7. exd5 {[%emt 0:00:05]} O-O {[%emt 0:00:17]} 8. Bd3 {[%emt 0:00:01] White is slightly better.} d6 {[%emt 0:00:03]} 9. Nge2 {[%emt 0:00:05]} Bg4 {[%emt 0:00:06]} ({Black should play} 9... Nbd7 $14) 10. O-O $16 {[%emt 0:00:28]} Nbd7 {[%emt 0:00:05]} 11. Bf4 {[%emt 0:00:37]} Bxc3 {[%emt 0:00:28]} (11... Ne5 $142) 12. Nxc3 {[%emt 0:00:18]} Ne5 {[%emt 0:00:04]} 13. Bxe5 {[%emt 0:00:33]} dxe5 {[%emt 0:00:02]} 14. Rae1 {[%emt 0:00:11]} Re8 {[%emt 0:00:15]} 15. f3 {[%emt 0:02:14][%cal Bf2f3,Bf3f4][%mdl 32]} Bh5 {[%emt 0:00:29]} 16. Re3 {[%emt 0:00:28] White is more active.} Bg6 {[%emt 0:02:34]} 17. Bxg6 {[%emt 0:00:20]} hxg6 {[%emt 0:00:04]} 18. Rfe1 {[%emt 0:00:02]} Nd7 {[%emt 0:00:10] [#]} (18... a6 $16 19. Rxe5 Rxe5 20. Rxe5 b5) 19. f4 $1 $18 {[%emt 0:01:59][%mdl 512]} Qf6 {[%emt 0:00:38]} (19... e4 20. Nxe4) 20. g3 {[%emt 0:01:40]} Kf8 {[%emt 0:01:37]} 21. Qe2 {[%emt 0:00:16]} e4 {[%emt 0:02:21]} 22. Nxe4 {[%emt 0:01:58]} ({Don't take} 22. Rxe4 Rxe4 23. Qxe4 (23. Nxe4 Qd4+ 24. Nf2 Qf6 $18) 23... Rb8 $18) 22... Qd8 {[%emt 0:00:49]} 23. Ng5 {[%emt 0:00:41][%cal Be4g5,Bg5f3,Bf3e5][%mdl 32]} Rxe3 {[%emt 0:00:16]} 24. Qxe3 {[%emt 0:00:01]} Nf6 {[%emt 0:00:03][%cal Bd7f6,Bf6e8,Be8d6][%mdl 32]} 25. Qe5 {[%emt 0:00:55] Strongly threatening d6.} Qd7 {[%emt 0:01:37]} 26. Qc3 {[%emt 0:01:09]} Ne8 {[%emt 0:01:19]} 27. Nf3 {[%emt 0:00:41]} Nd6 {[%emt 0:00:34]} 28. Ne5 {[%emt 0:00:05]} Qf5 {[%emt 0:00:27]} (28... Qb7 29. Nc6 Qd7) 29. b3 {[%emt 0:00:21]} (29. g4 $142 Qxf4 30. Nxg6+ fxg6 31. Rf1 Qxf1+ 32. Kxf1) 29... Re8 {[%emt 0:00:24]} 30. Qd3 $4 {[%emt 0:00:28][%mdl 8192] [#]} (30. g4 $18 {and life is good for White.} Qc8 (30... Qxf4 $2 {too greedy.} 31. Nxg6+ fxg6 32. Rf1 $18) 31. h3) 30... Rxe5 $19 {[%emt 0:00:34][%mdl 512] Black is clearly winning.} 31. fxe5 {[%emt 0:00:20]} (31. Qxf5 Rxe1+) 31... Qxd3 {[%emt 0:00:09]} 32. exd6 {[%emt 0:00:02] Intending d7 and mate.} Qd4+ {[%emt 0:00:07]} 33. Kh1 {[%emt 0:00:12] White wants to mate with d7.} Qg4 {[%emt 0:00:34]} 34. Re7 {[%emt 0:00:20]} Qf5 {[%emt 0:00:26]} 35. Kg2 {[%emt 0:00:21][%mdl 32768] Against Qf1+.   Weighted Error Value: White=0.74/Black=0.50.  Missed win:     	White=1     	---        Mistake:       	White=1     	Black=4      Inaccurate:     	White=2     	Black=2      OK:         	White=10    	Black=9      Best:        	White=2     	Black=1      Brilliant:      	White=1     	Black=1     . Sensor Board Error (Ke4/e5)?} 1-0

[Event "Wuerttemberg Rapid Teams 2024"]
[Site "B?blingen, Germany"]
[Date "2024.04.13"]
[Round "6.30"]
[White "Bodriyenko, Markiyan"]
[Black "Lahouel, Kim-Luca"]
[Result "1-0"]
[ECO "C27"]
[WhiteElo "1728"]
[BlackElo "1970"]
[Annotator "TA"]
[PlyCount "103"]
[EventDate "2024.04.13"]
[EventType "team-tourn"]
[SourceTitle "playchess.com"]
[Source "ChessBase"]
[SourceQuality "1"]
[TimeControl "900+5"]

{[%evp 9,103,-6,0,5,25,38,31,29,122,137,146,146,166,154,149,155,157,150,152,148,147,90,395,407,439,439,559,563,586,581,574,565,540,528,539,547,549,306,316,289,301,318,321,268,266,271,324,323,337,350,345,333,345,350,405,397,408,363,388,319,346,324,386,348,370,370,327,313,378,379,372,377,382,378,603,365,6406,6406,5934,6081,5742,5742,29968,29970,29976,29977,29977,29977,29977,29978,29979,29980,29980,29981,29981,29982]} 1. e4 {[%emt 0:00:01]} e5 {[%emt 0:00:02]} 2. Nc3 {[%emt 0:00:01]} Nf6 {[%emt 0:00:03]} 3. Bc4 {[%emt 0:00:02]} Bc5 {[%emt 0:00:06]} 4. d3 {[%emt 0:00:01]} O-O {[%emt 0:00:06]} 5. f4 {[%emt 0:00:03] [#]} d5 $1 {[%emt 0:00:44]} 6. Nxd5 {[%emt 0:00:17]} Nxd5 {[%emt 0:00:09]} 7. Bxd5 {[%emt 0:00:02]} c6 {[%emt 0:00:20]} 8. Bb3 {[%emt 0:00:08] White is slightly better.} Nd7 {[%emt 0:00:16]} (8... a5 $1 $11) 9. Nf3 $16 {[%emt 0:00:04]} Qf6 {[%emt 0:00:11]} 10. f5 {[%emt 0:00:25]} Qd6 {[%emt 0:00:40]} 11. Qe2 {[%emt 0:00:32]} a5 {[%emt 0:00:45][%cal Ba7a5,Ba5a4][%mdl 32]} 12. a3 {[%emt 0:00:05]} Nf6 {[%emt 0:00:20][%cal Bd7f6,Bf6e4,Be4c5,Bc5b3][%mdl 32]} 13. Be3 {[%emt 0:00:11]} a4 {[%emt 0:00:46]} 14. Ba2 {[%emt 0:00:10]} b5 {[%emt 0:01:14]} 15. c3 {[%emt 0:00:14]} (15. Bxc5 $142 Qxc5 16. O-O-O) 15... Rd8 {[%emt 0:00:11][%mdl 8192] A mistake that costs the game.} (15... Bxe3 $16 {is tougher.} 16. Qxe3 Ba6) 16. d4 $18 {[%emt 0:00:07]} exd4 {[%emt 0:02:26]} 17. cxd4 {[%emt 0:00:01]} Nxe4 {[%emt 0:03:15]} 18. dxc5 {[%emt 0:00:04]} Nxc5 {[%emt 0:00:03]} 19. O-O {[%emt 0:00:12]} Nb3 {[%emt 0:01:22]} 20. Rad1 {[%emt 0:00:26]} Qc7 {[%emt 0:00:10]} 21. Rxd8+ {[%emt 0:00:38]} Qxd8 {[%emt 0:00:01]} 22. Rd1 {[%emt 0:00:08]} Qe8 {[%emt 0:00:24]} 23. Bb6 {[%emt 0:01:30][%cal Re2e8] [#]} Bxf5 {[%emt 0:00:01]} 24. Qxe8+ {[%emt 0:00:06]} Rxe8 {[%emt 0:00:01]} 25. Bxb3 {[%emt 0:00:33]} axb3 {[%emt 0:00:01]} 26. Rd8 {[%emt 0:00:06]} Rxd8 {[%emt 0:00:08]} 27. Bxd8 {[%emt 0:00:01]} c5 {[%emt 0:00:19][%cal Bc6c5,Bc5c4][%mdl 32]} 28. Kf2 {[%emt 0:00:15]} Kf8 {[%emt 0:00:03]} 29. Ke3 {[%emt 0:00:05]} Ke8 {[%emt 0:00:02]} 30. Bb6 {[%emt 0:00:04]} c4 {[%emt 0:00:08]} 31. Ba5 {[%emt 0:00:14]} Ke7 {[%emt 0:00:18]} 32. Nd4 {[%emt 0:00:08]} Bd7 {[%emt 0:00:02]} 33. Bb4+ {[%emt 0:00:08]} Kf6 {[%emt 0:00:00]} 34. Ne2 {[%emt 0:00:30]} Bc6 {[%emt 0:00:25]} 35. g3 {[%emt 0:00:16]} Kg5 {[%emt 0:00:07]} 36. h4+ {[%emt 0:01:47]} Kg4 {[%emt 0:00:14]} 37. Be1 {[%emt 0:00:02]} f5 {[%emt 0:00:26]} 38. Nd4 {[%emt 0:00:16]} Bd7 {[%emt 0:00:03]} 39. Nf3 {[%emt 0:00:05] Threatens to win with Ne5+.} Be6 {[%emt 0:00:21]} 40. Ne5+ {[%emt 0:00:06]} Kh3 {[%emt 0:00:12]} 41. Kf4 {[%emt 0:00:11]} h6 {[%emt 0:00:13]} (41... g6 $142 42. Nf3 Kg2) 42. Nf3 {[%emt 0:00:21] Nd4 would now be deadly.} g6 $2 {[%emt 0:00:05]} (42... Bd7 43. Ne5 Be8 44. Kxf5 (44. Bc3 Bh5 $18) 44... c3 45. Bxc3 (45. bxc3 $2 {loses.} b2 $19) 45... Kxg3) 43. Ne5 {[%emt 0:00:02]} g5+ {[%emt 0:00:22]} 44. hxg5 {[%emt 0:00:03]} hxg5+ {[%emt 0:00:01]} 45. Kxg5 {[%emt 0:00:02] Intending Kf4 and mate.} Kg2 {[%emt 0:00:01]} 46. Kf4 {[%emt 0:00:28] White mates.} Kf1 {[%emt 0:00:04]} 47. Bc3 {[%emt 0:00:02]} Ke2 {[%emt 0:00:03]} 48. Nf3 {[%emt 0:00:04]} Bd7 {[%emt 0:00:18]} 49. Nd4+ {[%emt 0:00:02]} Kf2 {[%emt 0:00:02]} 50. Nxf5 {[%emt 0:00:02]} Bxf5 {[%emt 0:00:03]} 51. Kxf5 {[%emt 0:00:02]} Kxg3 {[%emt 0:00:02]} 52. Ke5 {[%emt 0:00:00] Weighted Error Value: White=0.21 (precise) /Black=0.54.  Loses game:     	---       	Black=1      Mistake:       	White=1     	Black=3      Inaccurate:     	White=2     	---        OK:         	White=17    	Black=11     Best:        	White=3     	Black=2} 1-0